bitfinex-derivatives/quotes_BTCF0:USTF0_20250928
["timestamp","ask_amount","ask_price","bid_price","bid_amount"]
[1759074252784,0.35314597,109960.0,109950.0,0.8908687]
[1759074253086,0.69445194,109960.0,109950.0,1.3158287]
[1759074253589,0.71669328,109960.0,109950.0,1.65713467]
[1759074254682,0.71669328,109960.0,109950.0,1.3158287]
[1759074254884,0.71669328,109960.0,109950.0,1.65713467]
[1759074256986,0.71669328,109960.0,109950.0,0.4908687]
[1759074257389,0.71669328,109960.0,109950.0,1.3158287]
[1759074258093,0.71669328,109960.0,109950.0,0.4908687]
[1759074258094,0.73788122,109960.0,109950.0,0.4908687]
[1759074258492,0.03408134,109960.0,109950.0,1.3158287]
[1759074258689,0.71669328,109960.0,109950.0,1.3158287]
[1759074263500,0.07127105,109970.0,109960.0,0.0909005]
[1759074263806,0.39348861,109990.0,109980.0,0.1248639]
[1759074264102,0.74384575,109990.0,109980.0,0.1248639]
[1759074264598,0.71115714,109990.0,109980.0,0.1248639]
[1759074264802,0.40253978,109990.0,109980.0,0.46616987]
[1759074265005,0.71115714,109990.0,109980.0,0.46616987]
[1759074266202,0.78456701,109990.0,109980.0,0.46616987]
[1759074266905,0.43420987,109990.0,109980.0,0.80747584]
[1759074267098,0.41471584,109990.0,109980.0,0.46616987]
[1759074272103,0.41471584,109990.0,109980.0,0.1248639]
[1759074272305,0.41471584,109990.0,109980.0,0.46616987]
[1759074273009,0.07340987,109990.0,109980.0,0.46616987]
[1759074273209,0.34130597,109990.0,109980.0,0.46616987]
[1759074274011,0.41492673,109990.0,109980.0,1.29100987]
[1759074274715,0.41492673,109990.0,109980.0,0.46616987]
[1759074274903,0.41492673,109990.0,109980.0,1.29100987]
[1759074275416,0.43703595,109990.0,109980.0,1.29100987]
[1759074280322,0.4146311,109990.0,109980.0,1.29071424]
[1759074280817,0.43673176,109990.0,109980.0,1.29071424]
[1759074281416,0.43673176,109990.0,109980.0,1.29067424]
[1759074281616,0.45786303,109990.0,109980.0,1.29067424]
[1759074282819,0.43673176,109990.0,109980.0,1.29067424]
[1759074283220,0.43673176,109990.0,109980.0,0.46587424]
[1759074283421,0.43673176,109990.0,109980.0,1.29063424]
[1759074284519,0.09572142,109990.0,109980.0,1.29063424]
[1759074285120,0.43673176,109990.0,109980.0,0.1248639]
[1759074285616,0.79753176,109990.0,109980.0,0.1248639]
[1759074286021,0.79753176,109990.0,109980.0,0.9496239]
[1759074286216,0.79753176,109990.0,109980.0,0.1248639]
[1759074286424,1.19753176,109990.0,109980.0,0.1248639]
[1759074286627,1.19753176,109990.0,109980.0,0.9496239]
[1759074287124,1.19753176,109990.0,109980.0,0.1248639]
[1759074291926,0.79753176,109990.0,109980.0,0.1248639]
[1759074292323,0.43673176,109990.0,109980.0,0.4856639]
[1759074292527,0.09572142,109990.0,109980.0,0.82667424]
[1759074293434,0.09572142,109990.0,109980.0,0.82767424]
[1759074294230,0.09572142,109990.0,109980.0,0.82667424]
[1759074294434,0.09572142,109990.0,109980.0,0.82767424]
[1759074298430,0.02210066,109990.0,109980.0,0.82767424]
[1759074302433,0.0593381,110000.0,109990.0,0.0349]
[1759074302737,0.0593381,110000.0,109990.0,1.65226744]
[1759074302939,0.0593381,110000.0,109990.0,1.3112571]
[1759074303831,0.06878311,110000.0,109990.0,1.3112571]
[1759074304133,0.00944501,110000.0,109990.0,1.3112571]
[1759074304335,0.01312092,110010.0,110000.0,0.1257688]
[1759074304530,0.01312092,110010.0,110000.0,0.82757914]
[1759074304936,0.01312092,110010.0,110000.0,0.4865688]
[1759074305636,0.35413126,110010.0,110000.0,0.4865688]
[1759074306538,0.01312092,110010.0,110000.0,0.4865688]
[1759074307136,0.08571073,110010.0,110000.0,0.4865688]
[1759074307436,0.08571073,110010.0,110000.0,0.82757914]
[1759074307643,0.08571073,110010.0,110000.0,1.65217914]
[1759074307837,0.01312092,110010.0,110000.0,1.65217914]
[1759074308544,0.01312092,110010.0,110000.0,0.82757914]
[1759074308936,0.01312092,110010.0,110000.0,1.65217914]
[1759074309445,0.01312092,110010.0,110000.0,0.82757914]
[1759074309646,0.01312092,110010.0,110000.0,1.65213914]
[1759074309835,0.02219966,110010.0,110000.0,1.65213914]
[1759074310034,0.36321,110010.0,110000.0,1.3111288]
[1759074310435,0.02219966,110010.0,110000.0,1.3111288]
[1759074310636,0.36321,110010.0,110000.0,1.3111288]
[1759074311940,0.36321,110010.0,110000.0,0.4865688]
[1759074312147,0.36321,110010.0,110000.0,1.3111288]
[1759074313039,0.70422034,110010.0,110000.0,0.4865688]
[1759074313243,0.70422034,110010.0,110000.0,0.9503288]
[1759074313439,1.10422034,110010.0,110000.0,0.1257688]
[1759074313648,1.46502034,110010.0,110000.0,0.1041488]
[1759074314147,1.46502034,110010.0,110000.0,0.1270588]
[1759074314446,1.48699477,110010.0,110000.0,0.1270588]
[1759074315349,1.48699477,110010.0,110000.0,0.1041488]
[1759074316145,1.48699477,110010.0,110000.0,0.1270588]
[1759074316749,1.48699477,110010.0,110000.0,0.1041488]
[1759074318450,1.48699477,110010.0,110000.0,0.1270588]
[1759074320352,0.0908688,110000.0,109990.0,0.1041518]
[1759074320556,0.0908688,110000.0,109990.0,0.0908718]
[1759074320557,0.83610269,110000.0,109990.0,0.0908718]
[1759074321054,0.83610269,110000.0,109990.0,0.1036518]
[1759074321245,0.83610269,110000.0,109990.0,0.1259018]
[1759074321646,0.74523389,110000.0,109990.0,0.1259018]
[1759074322849,0.74525214,110000.0,109990.0,0.1259018]
[1759074323953,1.56973214,110000.0,109990.0,0.1259018]
[1759074326054,0.74525214,110000.0,109990.0,0.1259018]
[1759074326253,1.56973214,110000.0,109990.0,0.1259018]
[1759074328951,0.38445214,110000.0,109990.0,0.4867018]
[1759074329155,1.20893214,110000.0,109990.0,0.4867018]
[1759074334463,1.20893214,110000.0,109990.0,0.1259018]
[1759074336264,1.18748302,110000.0,109990.0,0.1259018]
[1759074338569,1.18748308,110000.0,109990.0,0.1259018]
[1759074342270,1.52854818,110000.0,109990.0,0.1259018]
[1759074342575,1.52846818,110000.0,109990.0,0.1259018]
[1759074347175,1.91081647,110000.0,109990.0,0.1259018]
[1759074347577,2.25185419,110000.0,109990.0,0.0908718]
[1759074348165,2.65185419,110000.0,109990.0,0.0908718]
[1759074348371,2.31081647,110000.0,109990.0,0.0908718]
[1759074348578,2.65185419,110000.0,109990.0,0.0908718]
[1759074349278,1.48641647,110000.0,109990.0,0.0908718]
[1759074349477,2.31081647,110000.0,109990.0,0.0908718]
[1759074350081,2.31077647,110000.0,109990.0,0.0908718]
[1759074350279,1.14537875,110000.0,109990.0,0.1253418]
[1759074350481,0.74537875,110000.0,109990.0,0.46637952]
[1759074350781,1.20893875,110000.0,109990.0,0.46637952]
[1759074350981,0.38457875,110000.0,109990.0,0.46637952]
[1759074351188,0.86790103,110000.0,109990.0,0.82717952]
[1759074351380,1.20893875,110000.0,109990.0,0.82717952]
[1759074352084,0.38457875,110000.0,109990.0,0.82717952]
[1759074352284,1.20897875,110000.0,109990.0,0.82717952]
[1759074352781,0.38457875,110000.0,109990.0,0.82717952]
[1759074352974,1.20893875,110000.0,109990.0,0.82717952]
[1759074353685,1.54997647,110000.0,109990.0,0.82717952]
[1759074354680,0.38457875,110000.0,109990.0,0.82717952]
[1759074356186,0.04354103,110000.0,109990.0,0.82717952]
[1759074357988,0.38457875,110000.0,109990.0,0.4861418]
[1759074358185,0.38457875,110000.0,109990.0,0.82717952]
[1759074360485,0.04354103,110000.0,109990.0,0.82717952]
[1759074360786,4e-08,110000.0,109990.0,1.56821724]
[1759074360990,0.01392092,110010.0,110000.0,0.1253397]
[1759074361185,0.01312092,110010.0,110000.0,1.99253514]
[1759074361381,0.35415864,110010.0,110000.0,1.99253514]
[1759074361584,0.35455864,110010.0,110000.0,1.99253514]
[1759074361891,0.35415864,110010.0,110000.0,1.65149742]
[1759074362081,0.35455864,110010.0,110000.0,1.65149742]
[1759074362884,0.01352092,110010.0,110000.0,1.65149742]
[1759074363086,0.35455864,110010.0,110000.0,1.65149742]
[1759074367993,0.35455864,110010.0,110000.0,0.82717742]
[1759074368195,0.35455864,110010.0,110000.0,1.65141742]
[1759074368396,0.01352092,110010.0,110000.0,1.65141742]
[1759074368597,2e-08,110010.0,110000.0,2.39245514]
[1759074368906,0.4214455,110020.0,110010.0,0.1253314]
[1759074369086,0.0098527,110020.0,110010.0,0.82716912]
[1759074369291,0.0098527,110020.0,110010.0,1.22716912]
[1759074369794,0.0090527,110020.0,110010.0,1.22716912]
[1759074369995,0.41367246,110030.0,110020.0,0.125322]
[1759074370198,0.41447246,110030.0,110020.0,0.46635972]
[1759074370796,0.41367246,110030.0,110020.0,0.46635972]
[1759074371095,0.41407246,110030.0,110020.0,0.949522]
[1759074371300,0.43021761,110030.0,110020.0,0.949522]
[1759074371595,0.08917989,110030.0,110020.0,0.949522]
[1759074371795,0.43021761,110030.0,110020.0,0.949522]
[1759074372291,0.43021761,110030.0,110020.0,0.090852]
[1759074372292,0.45116387,110030.0,110020.0,0.090852]
[1759074372591,1.19220159,110030.0,110020.0,0.090852]
[1759074372796,1.21407377,110030.0,110020.0,0.103642]
[1759074372998,1.57487377,110030.0,110020.0,0.124672]
[1759074373799,0.89279833,110030.0,110020.0,0.124672]
[1759074374094,1.57487377,110030.0,110020.0,0.124672]
[1759074374994,1.57576862,110030.0,110020.0,0.124672]
[1759074377797,1.57576862,110030.0,110020.0,0.103642]
[1759074377997,1.57576862,110030.0,110020.0,0.126272]
[1759074382809,1.55300159,110030.0,110020.0,0.126272]
[1759074383103,1.57578623,110030.0,110020.0,0.126272]
[1759074387106,2.41686623,110030.0,110020.0,0.126272]
[1759074387702,0.89371079,110030.0,110020.0,0.126272]
[1759074387906,2.05582623,110030.0,110020.0,0.126272]
[1759074388107,2.05586623,110030.0,110020.0,0.126272]
[1759074388608,1.21498623,110030.0,110020.0,0.126272]
[1759074388807,2.05594623,110030.0,110020.0,0.126272]
[1759074389109,1.21498623,110030.0,110020.0,0.126272]
[1759074389305,0.87394851,110030.0,110020.0,0.126272]
[1759074389510,1.71482851,110030.0,110020.0,0.126272]
[1759074390008,1.71478851,110030.0,110020.0,0.126272]
[1759074390906,0.87394851,110030.0,110020.0,0.126272]
[1759074391209,1.71486851,110030.0,110020.0,0.126272]
[1759074391507,1.71474851,110030.0,110020.0,0.126272]
[1759074392712,0.87394851,110030.0,110020.0,0.126272]
[1759074392911,1.71474851,110030.0,110020.0,0.126272]
[1759074394113,0.45300225,110030.0,110020.0,0.126272]
[1759074394309,1.29360225,110030.0,110020.0,0.126272]
[1759074394508,0.45300225,110030.0,110020.0,0.126272]
[1759074395010,0.45300225,110030.0,110020.0,0.46730972]
[1759074395211,0.11196453,110030.0,110020.0,0.46730972]
[1759074395413,0.45300225,110030.0,110020.0,0.46730972]
[1759074396509,0.45300225,110030.0,110020.0,0.86730972]
[1759074398412,0.45300225,110030.0,110020.0,1.22810972]
[1759074399213,0.45300225,110030.0,110020.0,2.06854972]
[1759074399512,0.45300225,110030.0,110020.0,1.66854972]
[1759074399712,0.45260225,110030.0,110020.0,1.66854972]
[1759074401014,0.45260225,110030.0,110020.0,1.66822972]
[1759074402217,0.45232769,110030.0,110020.0,1.66795516]
[1759074403617,0.11156453,110030.0,110020.0,1.66795516]
[1759074403818,0.45232769,110030.0,110020.0,0.82783516]
[1759074404016,0.45232769,110030.0,110020.0,1.326312]
[1759074404212,0.54317139,110030.0,110020.0,0.126272]
[1759074404418,1.30397139,110030.0,110020.0,0.103642]
[1759074404723,1.32541851,110030.0,110020.0,0.103642]
[1759074408716,1.32541851,110030.0,110020.0,0.126272]
[1759074409923,2.16401851,110030.0,110020.0,0.126272]
[1759074410425,1.23457481,110030.0,110020.0,0.126272]
[1759074410627,2.07297481,110030.0,110020.0,0.126272]
[1759074410819,2.07289481,110030.0,110020.0,0.126272]
[1759074411121,2.16373851,110030.0,110020.0,0.103642]
[1759074418232,0.11156453,110030.0,110020.0,0.82696516]
[1759074418432,0.11156453,110030.0,110020.0,0.486202]
[1759074418627,0.45232769,110030.0,110020.0,0.486202]
[1759074421023,0.11156453,110030.0,110020.0,0.886202]
[1759074423632,0.45232769,110030.0,110020.0,0.886202]
[1759074425131,0.43618254,110030.0,110020.0,0.886202]
[1759074425332,0.09541938,110030.0,110020.0,0.886202]
[1759074425833,0.09541938,110030.0,110020.0,1.22696516]
[1759074426735,0.43618254,110030.0,110020.0,1.722962]
[1759074427930,0.43618254,110030.0,110020.0,1.362162]
[1759074428136,0.43618254,110030.0,110020.0,1.722962]
[1759074429239,0.43618254,110030.0,110020.0,0.886202]
[1759074429636,0.43618254,110030.0,110020.0,1.722402]
[1759074430034,0.43618254,110030.0,110020.0,0.886202]
[1759074430237,0.43618254,110030.0,110020.0,1.722362]
[1759074430638,0.43618254,110030.0,110020.0,0.886202]
[1759074430838,0.43618254,110030.0,110020.0,1.722202]
[1759074433741,0.43618254,110030.0,110020.0,0.886202]
[1759074434236,0.43618254,110030.0,110020.0,1.721762]
[1759074435036,0.43618254,110030.0,110020.0,0.886202]
[1759074435237,0.43618254,110030.0,110020.0,1.721722]
[1759074439343,0.43618254,110030.0,110020.0,1.721002]
[1759074440744,0.45715028,110030.0,110020.0,1.721002]
[1759074441340,0.45715028,110030.0,110020.0,0.886202]
[1759074441541,0.79698254,110030.0,110020.0,0.125402]
[1759074441747,0.43618254,110030.0,110020.0,0.959882]
[1759074442250,0.43618254,110030.0,110020.0,0.125402]
[1759074442840,1.21776894,110030.0,110020.0,0.090852]
[1759074443248,1.29136894,110030.0,110020.0,0.126632]
[1759074443850,0.45696894,110030.0,110020.0,0.126632]
[1759074444260,0.11620578,110030.0,110020.0,0.487432]
[1759074444942,0.45696894,110030.0,110020.0,1.321672]
[1759074446050,0.11620578,110030.0,110020.0,1.321672]
[1759074447247,0.45696894,110030.0,110020.0,1.321432]
[1759074447756,0.45696894,110030.0,110020.0,0.487432]
[1759074448148,0.45696894,110030.0,110020.0,1.321192]
[1759074448351,0.45696894,110030.0,110020.0,0.487432]
[1759074448852,0.45696894,110030.0,110020.0,0.126632]
[1759074448853,0.81776894,110030.0,110020.0,0.126632]
[1759074450253,0.45696894,110030.0,110020.0,0.126632]
[1759074450456,0.81776894,110030.0,110020.0,0.126632]
[1759074451249,0.0908602,110010.0,110000.0,0.0008]
[1759074451455,2.27173803,110010.0,110000.0,0.0916685]
[1759074451750,2.27285803,110010.0,110000.0,0.1274485]
[1759074451944,2.67285803,110010.0,110000.0,0.1274485]
[1759074452144,1.83821803,110010.0,110000.0,0.1274485]
[1759074453047,1.43821803,110010.0,110000.0,0.1274485]
[1759074454148,0.73665487,110010.0,110000.0,0.1274485]
[1759074454350,0.02254512,110010.0,110000.0,0.46821166]
[1759074454750,0.02254512,110010.0,110000.0,0.47121166]
[1759074455556,0.02254512,110010.0,110000.0,0.83201166]
[1759074455760,0.7949843,110030.0,110020.0,0.126632]
[1759074455952,0.81749509,110030.0,110020.0,0.126632]
[1759074456349,0.45594553,110030.0,110020.0,0.46739516]
[1759074456561,0.09514553,110030.0,110020.0,1.22819516]
[1759074456962,0.02251079,110030.0,110020.0,1.22819516]
[1759074458060,0.02251079,110030.0,110020.0,0.887432]
[1759074459562,0.02251079,110030.0,110020.0,0.82819516]
[1759074460355,0.36327395,110030.0,110020.0,0.487432]
[1759074461364,0.36327395,110030.0,110020.0,1.321512]
[1759074462262,0.36327086,110030.0,110020.0,1.66227207]
[1759074463367,0.02251079,110030.0,110020.0,0.82819207]
[1759074463556,0.36327086,110030.0,110020.0,1.66199207]
[1759074464857,0.36327086,110030.0,110020.0,1.321232]
[1759074465062,0.36327086,110030.0,110020.0,2.00275214]
[1759074465266,0.36327086,110030.0,110020.0,1.66199207]
[1759074466456,0.36327086,110030.0,110020.0,2.00275214]
[1759074466857,0.36327086,110030.0,110020.0,2.00267214]
[1759074467564,0.36327086,110030.0,110020.0,1.16895214]
[1759074467958,0.36327086,110030.0,110020.0,1.66167207]
[1759074468861,0.02251079,110030.0,110020.0,1.320872]
[1759074469058,0.36327086,110030.0,110020.0,1.66163207]
[1759074469866,0.36327086,110030.0,110020.0,0.82819207]
[1759074470164,0.36327086,110030.0,110020.0,1.66151207]
[1759074470766,0.36327086,110030.0,110020.0,0.82819207]
[1759074470966,0.36327086,110030.0,110020.0,1.66303207]
[1759074476670,0.36327086,110030.0,110020.0,1.66223207]
[1759074478272,0.36327086,110030.0,110020.0,2.00299214]
[1759074479073,0.36327086,110030.0,110020.0,1.16895214]
[1759074479274,0.36327086,110030.0,110020.0,2.00271214]
[1759074479974,0.36327086,110030.0,110020.0,1.16895214]
[1759074480166,0.36327086,110030.0,110020.0,2.00259214]
[1759074480472,0.34076007,110030.0,110020.0,2.00259214]
[1759074480973,0.79147298,110040.0,110030.0,0.1256753]
[1759074481172,1.15471497,110040.0,110030.0,0.46643537]
[1759074482369,1.15471497,110040.0,110030.0,0.1256753]
[1759074484868,1.15471497,110040.0,110030.0,0.46643537]
[1759074485375,0.47319483,110040.0,110030.0,0.46643537]
[1759074485674,1.15471497,110040.0,110030.0,0.46643537]
[1759074486579,0.47319483,110040.0,110030.0,0.46643537]
[1759074486877,1.15471497,110040.0,110030.0,0.46643537]
[1759074490982,0.8139549,110040.0,110030.0,0.46643537]
[1759074491177,0.4531549,110040.0,110030.0,0.46643537]
[1759074491382,0.43676391,110040.0,110030.0,0.46643537]
[1759074492282,0.09600384,110040.0,110030.0,0.46643537]
[1759074492582,0.43676391,110040.0,110030.0,0.46643537]
[1759074493576,0.09600384,110040.0,110030.0,0.46643537]
[1759074494076,0.43676391,110040.0,110030.0,0.46643537]
[1759074494877,0.09600384,110040.0,110030.0,0.46643537]
[1759074495181,0.43676391,110040.0,110030.0,0.46643537]
[1759074495376,0.09600384,110040.0,110030.0,0.46643537]
[1759074495577,0.09600384,110040.0,110030.0,0.82723537]
[1759074495780,0.43676391,110040.0,110030.0,0.82723537]
[1759074496279,0.43676391,110040.0,110030.0,0.8413527]
[1759074498382,0.43676391,110040.0,110030.0,1.6729127]
[1759074499085,0.09600384,110040.0,110030.0,1.6729127]
[1759074499281,0.43676391,110040.0,110030.0,1.6729127]
[1759074499481,0.09600384,110040.0,110030.0,1.65875537]
[1759074499675,0.43676391,110040.0,110030.0,1.65875537]
[1759074499881,0.43676391,110040.0,110030.0,1.65863537]
[1759074504691,0.09600384,110040.0,110030.0,1.65863537]
[1759074504892,0.02248192,110040.0,110030.0,1.65863537]
[1759074506190,0.02248192,110040.0,110030.0,1.3173953]
[1759074506392,0.36324199,110040.0,110030.0,1.65815537]
[1759074507090,0.36324199,110040.0,110030.0,0.82723537]
[1759074507291,0.36324199,110040.0,110030.0,1.65803537]
[1759074507794,0.02248192,110040.0,110030.0,0.4864753]
[1759074507996,0.36324199,110040.0,110030.0,1.65795537]
[1759074508889,0.02248192,110040.0,110030.0,1.65795537]
[1759074509090,0.36324199,110040.0,110030.0,1.65795537]
[1759074511000,0.02248192,110040.0,110030.0,1.65795537]
[1759074511199,0.36324199,110040.0,110030.0,1.65795537]
[1759074512196,0.02248192,110040.0,110030.0,1.65795537]
[1759074512397,0.36324199,110040.0,110030.0,1.65795537]
[1759074512697,0.02248192,110040.0,110030.0,1.65795537]
[1759074512898,0.36324199,110040.0,110030.0,1.65795537]
[1759074514001,0.36324199,110040.0,110030.0,1.3171953]
[1759074514298,0.36324199,110040.0,110030.0,1.65795537]
[1759074514796,0.02248192,110040.0,110030.0,1.65795537]
[1759074515496,0.08832533,110050.0,110040.0,0.1253267]
[1759074515700,0.02249127,110050.0,110040.0,1.16764684]
[1759074519903,0.02249127,110050.0,110040.0,1.56764684]
[1759074520100,0.01372498,110060.0,110050.0,0.1253184]
[1759074520308,0.77818617,110070.0,110060.0,0.1253102]
[1759074520504,0.77818617,110070.0,110060.0,0.46607027]
[1759074520699,0.77818617,110070.0,110060.0,1.29591027]
[1759074520900,0.77818617,110070.0,110060.0,0.9551502]
[1759074521298,0.81857805,110070.0,110060.0,0.46607027]
[1759074521499,0.81857805,110070.0,110060.0,0.9551102]
[1759074521698,0.81857805,110070.0,110060.0,0.1253102]
[1759074521905,0.81857805,110070.0,110060.0,0.9550302]
[1759074522805,0.83257185,110070.0,110060.0,0.1253102]
[1759074523104,0.83257185,110070.0,110060.0,0.9549502]
[1759074523915,1.23257185,110070.0,110060.0,0.1253102]
[1759074524206,1.23242311,110070.0,110060.0,0.9549502]
[1759074524409,1.57303444,110070.0,110060.0,0.9548302]
[1759074525411,1.57303444,110070.0,110060.0,0.9547902]
[1759074526807,1.57303444,110070.0,110060.0,0.9547102]
[1759074527208,1.57303444,110070.0,110060.0,0.1253102]
[1759074527411,1.57303444,110070.0,110060.0,0.9545502]
[1759074529313,1.57303444,110070.0,110060.0,0.1125902]
[1759074531618,1.57303444,110070.0,110060.0,0.1260202]
[1759074531816,1.23242311,110070.0,110060.0,0.1260202]
[1759074532117,1.25453577,110070.0,110060.0,0.1260202]
[1759074537023,1.5951471,110070.0,110060.0,0.1260202]
[1759074542022,2.4233071,110070.0,110060.0,0.1260202]
[1759074542423,2.08269577,110070.0,110060.0,0.1260202]
[1759074542724,2.08269577,110070.0,110060.0,0.0908202]
[1759074542924,2.45599571,110070.0,110060.0,0.0908202]
[1759074543125,2.40236961,110070.0,110060.0,0.0908202]
[1759074543319,2.43505822,110070.0,110060.0,0.0908202]
[1759074543527,1.69444689,110070.0,110060.0,0.1274502]
[1759074543822,0.83359828,110070.0,110060.0,0.1274502]
[1759074544016,1.66175828,110070.0,110060.0,0.1274502]
[1759074544212,1.69444689,110070.0,110060.0,0.1274502]
[1759074545620,0.86628689,110070.0,110060.0,0.1274502]
[1759074545823,1.69444689,110070.0,110060.0,0.1274502]
[1759074547024,0.86628689,110070.0,110060.0,0.1274502]
[1759074547221,1.69444689,110070.0,110060.0,0.1274502]
[1759074548222,0.86628689,110070.0,110060.0,0.1274502]
[1759074548529,1.69444689,110070.0,110060.0,0.1274502]
[1759074549529,1.35383556,110070.0,110060.0,0.1274502]
[1759074549729,1.69444689,110070.0,110060.0,0.1274502]
[1759074550029,1.35383556,110070.0,110060.0,0.1274502]
[1759074550231,1.69444689,110070.0,110060.0,0.1274502]
[1759074552431,2.03505822,110070.0,110050.0,0.1035483]
[1759074552632,1.69444689,110070.0,110060.0,0.0908202]
[1759074553330,1.69444689,110070.0,110060.0,0.1122802]
[1759074553732,2.03505822,110070.0,110060.0,0.1122802]
[1759074554133,2.03505822,110070.0,110060.0,0.1250702]
[1759074556637,2.03505822,110070.0,110060.0,0.1122802]
[1759074557535,1.35383556,110070.0,110060.0,0.1122802]
[1759074557835,2.03505822,110070.0,110060.0,0.1122802]
[1759074561635,2.03505822,110070.0,110050.0,0.0908282]
[1759074561841,0.73452133,110060.0,110050.0,0.0908282]
[1759074562028,0.75663399,110060.0,110050.0,0.1123482]
[1759074562228,1.58471399,110060.0,110050.0,0.1250082]
[1759074562428,0.74620399,110060.0,110050.0,0.1250082]
[1759074562638,1.57428399,110060.0,110050.0,0.1250082]
[1759074563037,0.74620399,110060.0,110050.0,0.1250082]
[1759074563237,1.57428399,110060.0,110050.0,0.1250082]
[1759074563541,0.74620399,110060.0,110050.0,0.1250082]
[1759074563738,1.57428399,110060.0,110050.0,0.1250082]
[1759074568739,1.57428399,110060.0,110050.0,0.1123482]
[1759074568947,1.58471399,110060.0,110050.0,0.0908282]
[1759074569343,1.58471399,110060.0,110050.0,0.1123482]
[1759074569743,1.58471399,110060.0,110050.0,0.0908282]
[1759074571341,1.98471399,110060.0,110050.0,0.0908282]
[1759074572838,2.0174026,110060.0,110050.0,0.0908282]
[1759074573335,0.0908323,110050.0,110040.0,0.0908316]
[1759074573549,1.10819855,110050.0,110030.0,0.1042199]
[1759074573736,1.55213133,110040.0,110030.0,0.1257375]
[1759074573931,1.92528532,110040.0,110030.0,0.1257375]
[1759074574539,1.58467399,110040.0,110030.0,0.1257375]
[1759074577745,1.58467399,110040.0,110030.0,0.0908375]
[1759074577938,1.58467399,110040.0,110030.0,0.1123575]
[1759074578138,1.58471399,110040.0,110030.0,0.1123575]
[1759074578339,0.75663399,110040.0,110030.0,0.1123575]
[1759074578542,1.58471399,110040.0,110030.0,0.1123575]
[1759074579144,0.75663399,110040.0,110030.0,0.1123575]
[1759074579345,1.58471399,110040.0,110030.0,0.1123575]
[1759074579644,0.75663399,110040.0,110030.0,0.1123575]
[1759074579943,1.58471399,110040.0,110030.0,0.1123575]
[1759074580642,1.58471399,110040.0,110030.0,0.1250175]
[1759074580840,1.92532532,110040.0,110030.0,0.0908375]
[1759074581139,1.92532532,110040.0,110030.0,0.1123575]
[1759074581542,1.58471399,110040.0,110030.0,0.1123575]
[1759074581741,1.58471399,110040.0,110030.0,0.1250175]
[1759074581942,1.21348399,110040.0,110030.0,0.1250175]
[1759074582744,0.38540399,110040.0,110030.0,0.1250175]
[1759074583043,0.87287266,110040.0,110030.0,0.1250175]
[1759074583233,1.21348399,110040.0,110030.0,0.1250175]
[1759074584638,0.38540399,110040.0,110030.0,0.1250175]
[1759074584844,1.21348399,110040.0,110030.0,0.1250175]
[1759074585244,0.38540399,110040.0,110030.0,0.1250175]
[1759074585444,1.21352399,110040.0,110030.0,0.1250175]
[1759074585647,1.21348399,110040.0,110030.0,0.1250175]
[1759074585945,0.38540399,110040.0,110030.0,0.1250175]
[1759074586244,0.04479266,110040.0,110030.0,0.1250175]
[1759074586445,0.72630174,110040.0,110030.0,0.1250175]
[1759074586637,0.04479266,110040.0,110030.0,0.86577204]
[1759074586841,0.3855472,110040.0,110030.0,0.86577204]
[1759074587047,0.72630174,110040.0,110030.0,0.5250175]
[1759074587247,0.72630174,110040.0,110030.0,0.86577204]
[1759074587740,0.04479266,110040.0,110030.0,0.86577204]
[1759074587941,0.72630174,110040.0,110030.0,0.86577204]
[1759074589945,0.3855472,110040.0,110030.0,0.86577204]
[1759074592653,0.3855472,110040.0,110030.0,0.5250175]
[1759074592848,0.3855472,110040.0,110030.0,0.86577204]
[1759074600255,0.04478142,110040.0,110030.0,0.86577204]
[1759074600455,0.38553596,110040.0,110030.0,0.5250175]
[1759074600753,0.38553596,110040.0,110030.0,0.86577204]
[1759074601549,0.36285596,110040.0,110030.0,0.86577204]
[1759074601751,0.38576596,110040.0,110030.0,0.86577204]
[1759074601950,0.38576596,110040.0,110030.0,1.69381204]
[1759074602155,0.38576596,110040.0,110030.0,0.86577204]
[1759074602355,0.38576596,110040.0,110030.0,1.69381204]
[1759074602957,0.38576596,110040.0,110030.0,2.05461204]
[1759074603660,0.38576596,110040.0,110030.0,1.7138575]
[1759074603961,0.38576596,110040.0,110030.0,1.22657204]
[1759074604154,0.38576596,110040.0,110030.0,2.05461204]
[1759074604554,0.04501142,110040.0,110030.0,2.05461204]
[1759074604758,0.38576596,110040.0,110030.0,2.05461204]
[1759074605254,0.04501142,110040.0,110030.0,2.05461204]
[1759074605459,0.38576596,110040.0,110030.0,2.05461204]
[1759074608364,0.38576596,110040.0,110030.0,2.05457204]
[1759074610355,0.38576596,110040.0,110030.0,1.22657204]
[1759074610660,0.38576596,110040.0,110030.0,2.05453204]
[1759074611064,0.38576596,110040.0,110030.0,1.22657204]
[1759074611259,0.38576596,110040.0,110030.0,2.05453204]
[1759074612859,0.04501142,110040.0,110030.0,2.05453204]
[1759074613061,0.38576596,110040.0,110030.0,2.05453204]
[1759074613763,0.38576596,110040.0,110030.0,1.22657204]
[1759074613965,0.38576596,110040.0,110030.0,2.05453204]
[1759074614664,0.04501142,110040.0,110030.0,2.05453204]
[1759074614863,0.38576596,110040.0,110030.0,2.05453204]
[1759074626372,0.38578594,110040.0,110030.0,2.05453204]
[1759074629477,0.38578594,110040.0,110030.0,2.05441204]
[1759074630278,0.38578594,110040.0,110030.0,1.22657204]
[1759074630478,0.38578594,110040.0,110030.0,2.05441204]
[1759074630678,0.38578566,110040.0,110030.0,2.05441204]
[1759074632976,0.04503112,110040.0,110030.0,2.05441204]
[1759074633178,0.38578566,110040.0,110030.0,2.05441204]
[1759074637183,0.04503144,110040.0,110030.0,2.05441204]
[1759074637485,0.38578598,110040.0,110030.0,2.05441204]
[1759074639485,0.38578598,110040.0,110030.0,1.65441204]
[1759074640381,0.38578598,110040.0,110030.0,0.4858175]
[1759074640684,0.72654052,110040.0,110030.0,1.3136175]
[1759074640886,0.72654052,110040.0,110030.0,1.65437204]
[1759074641185,0.38578598,110040.0,110030.0,1.65437204]
[1759074645287,0.04503144,110040.0,110030.0,1.65437204]
[1759074645482,0.38578598,110040.0,110030.0,1.65437204]
[1759074645786,0.38578598,110040.0,110030.0,0.82657204]
[1759074645987,0.38578598,110040.0,110030.0,1.65437204]
[1759074648183,0.38578598,110040.0,110030.0,1.3136175]
[1759074648184,0.38573119,110040.0,110030.0,1.3136175]
[1759074650291,0.38573119,110040.0,110030.0,0.4858175]
[1759074650591,0.38573119,110040.0,110030.0,1.3135775]
[1759074651594,0.38573119,110040.0,110030.0,0.4858175]
[1759074651790,0.38573119,110040.0,110030.0,1.3135775]
[1759074652087,0.38573119,110040.0,110030.0,0.4858175]
[1759074652294,0.38573119,110040.0,110030.0,1.3135775]
[1759074654792,0.38573119,110040.0,110030.0,0.4858175]
[1759074655395,0.04503144,110040.0,110030.0,0.4858175]
[1759074655593,0.38573119,110040.0,110030.0,1.3159775]
[1759074656297,0.78573119,110040.0,110030.0,0.4858175]
[1759074656498,0.78573119,110040.0,110030.0,1.3158975]
[1759074657096,0.78573119,110040.0,110030.0,0.4858175]
[1759074657302,0.78573119,110040.0,110030.0,1.3158975]